[Event "*** Titled Tuesday Blitz"]
[Site "Chess.com"]
[Date "2018.11.06"]
[Round "9"]
[White "vugarrasulov"]
[Black "Federtiu"]
[Result "1/2-1/2"]
[WhiteElo "2781"]
[BlackElo "2637"]
[TimeControl "180+2"]
[EndTime "15:03:14 PST"]
[Termination "Game drawn by repetition"]

1. e4 {[%clk 0:03:01.9]} 1... g6 {[%clk 0:03:01.9]} 2. d4 {[%clk 0:03:02.5]}
2... Bg7 {[%clk 0:03:03.8]} 3. Nc3 {[%clk 0:03:04.1]} 3... d6 {[%clk 0:03:04.8]}
4. f4 {[%clk 0:03:05.6]} 4... a6 {[%clk 0:03:05.8]} 5. Nf3 {[%clk 0:03:05.6]}
5... b5 {[%clk 0:03:06.7]} 6. Bd3 {[%clk 0:03:06.8]} 6... Nd7 {[%clk 0:03:08.1]}
7. e5 {[%clk 0:03:07.5]} 7... c5 {[%clk 0:03:08.8]} 8. exd6 {[%clk 0:03:00.9]}
8... exd6 {[%clk 0:03:06.2]} 9. O-O {[%clk 0:02:57.1]} 9... Ne7 {[%clk
0:03:06.1]} 10. Ne4 {[%clk 0:02:54]} 10... O-O {[%clk 0:02:48.7]} 11. Nxd6
{[%clk 0:02:53]} 11... cxd4 {[%clk 0:02:49.9]} 12. a4 {[%clk 0:02:47.8]} 12...
Qb6 {[%clk 0:02:43.8]} 13. Nxc8 {[%clk 0:02:37.9]} 13... Raxc8 {[%clk
0:02:45.7]} 14. axb5 {[%clk 0:02:38.4]} 14... axb5 {[%clk 0:02:46.6]} 15. Bd2
{[%clk 0:02:30.2]} 15... Nd5 {[%clk 0:02:45.6]} 16. f5 {[%clk 0:02:20.8]} 16...
Nc5 {[%clk 0:02:34.2]} 17. fxg6 {[%clk 0:02:19.6]} 17... fxg6 {[%clk 0:02:28.1]}
18. Ng5 {[%clk 0:01:59]} 18... Nxd3 {[%clk 0:02:25.1]} 19. cxd3 {[%clk 0:01:59]}
19... Rxf1+ {[%clk 0:02:12]} 20. Qxf1 {[%clk 0:02:00.9]} 20... Ne3 {[%clk
0:02:07.3]} 21. Qf7+ {[%clk 0:02:00.8]} 21... Kh8 {[%clk 0:02:07.9]} 22. Ra7
{[%clk 0:01:45.9]} 22... Qf6 {[%clk 0:02:01.4]} 23. Qxf6 {[%clk 0:01:40.7]}
23... Bxf6 {[%clk 0:02:02.9]} 24. Nxh7 {[%clk 0:01:39.3]} 24... Bd8 {[%clk
0:01:53.9]} 25. Nf8 {[%clk 0:01:39]} 25... Rc6 {[%clk 0:01:36.7]} 26. Ra8 {[%clk
0:01:33.1]} 26... Rc2 {[%clk 0:01:35.3]} 27. Rxd8 {[%clk 0:01:08.2]} 27... Rxd2
{[%clk 0:01:36.4]} 28. Nxg6+ {[%clk 0:01:06.6]} 28... Kg7 {[%clk 0:01:36.4]} 29.
Nf4 {[%clk 0:01:07.4]} 29... Rd1+ {[%clk 0:01:31.9]} 30. Kf2 {[%clk 0:01:07.9]}
30... Rf1+ {[%clk 0:01:33]} 31. Kg3 {[%clk 0:01:09]} 31... Nf5+ {[%clk
0:01:33.9]} 32. Kg4 {[%clk 0:01:08.1]} 32... Nh6+ {[%clk 0:01:34.6]} 33. Kg3
{[%clk 0:01:08]} 33... Nf5+ {[%clk 0:01:35.7]} 34. Kg4 {[%clk 0:01:08.7]} 34...
Nh6+ {[%clk 0:01:36.9]} 35. Kg3 {[%clk 0:01:09.2]} 35... Nf5+ {[%clk 0:01:38]}
36. Kg4 {[%clk 0:01:10.8]} 1/2-1/2

[Event "*** Titled Tuesday Blitz"]
[Site "Chess.com"]
[Date "2018.11.06"]
[Round "9"]
[White "pastouche06"]
[Black "ZuchBolt"]
[Result "1-0"]
[WhiteElo "2446"]
[BlackElo "2265"]
[TimeControl "180+2"]
[EndTime "15:03:20 PST"]
[Termination "pastouche06 won by resignation"]

1. d4 {[%clk 0:03:01.9]} 1... d5 {[%clk 0:03:00.6]} 2. c4 {[%clk 0:03:02.8]}
2... c6 {[%clk 0:03:01.4]} 3. Nf3 {[%clk 0:03:03.8]} 3... Nf6 {[%clk 0:03:02.9]}
4. g3 {[%clk 0:03:03.7]} 4... g6 {[%clk 0:03:02.8]} 5. Bg2 {[%clk 0:03:02.6]}
5... Bg7 {[%clk 0:03:04.3]} 6. O-O {[%clk 0:03:03.7]} 6... O-O {[%clk
0:03:05.9]} 7. cxd5 {[%clk 0:03:00.7]} 7... cxd5 {[%clk 0:03:06.6]} 8. Ne5
{[%clk 0:03:01.9]} 8... Ng4 {[%clk 0:03:03.5]} 9. f4 {[%clk 0:02:39.4]} 9... Nc6
{[%clk 0:02:54.9]} 10. Nc3 {[%clk 0:02:38.7]} 10... Ngxe5 {[%clk 0:02:42.6]} 11.
fxe5 {[%clk 0:02:26.8]} 11... Be6 {[%clk 0:02:42.6]} 12. e3 {[%clk 0:02:22.6]}
12... Rc8 {[%clk 0:02:30.5]} 13. Bd2 {[%clk 0:02:11.8]} 13... f6 {[%clk
0:02:22.4]} 14. exf6 {[%clk 0:02:13.7]} 14... Rxf6 {[%clk 0:02:20.8]} 15. Rxf6
{[%clk 0:02:12]} 15... Bxf6 {[%clk 0:02:22.7]} 16. Qf3 {[%clk 0:02:08.1]} 16...
Nb4 {[%clk 0:01:55.1]} 17. a3 {[%clk 0:02:01.9]} 17... Nd3 {[%clk 0:01:55.6]}
18. Rb1 {[%clk 0:01:44.1]} 18... Bf5 {[%clk 0:01:00.3]} 19. g4 {[%clk
0:01:34.2]} 19... Be4 {[%clk 0:00:43]} 20. Nxe4 {[%clk 0:01:32.7]} 20... dxe4
{[%clk 0:00:44.9]} 21. Qxe4 {[%clk 0:01:34]} 21... Nc5 {[%clk 0:00:26.4]} 22.
dxc5 {[%clk 0:01:30.3]} 22... Qxd2 {[%clk 0:00:19.8]} 23. Qe6+ {[%clk
0:01:29.6]} 23... Kg7 {[%clk 0:00:20.7]} 24. Qxc8 {[%clk 0:01:28.2]} 24... Qxe3+
{[%clk 0:00:21.3]} 25. Kh1 {[%clk 0:01:29.5]} 1-0

[Event "*** Titled Tuesday Blitz"]
[Site "Chess.com"]
[Date "2018.11.06"]
[Round "9"]
[White "sere99"]
[Black "DiogenesSinopeus"]
[Result "0-1"]
[WhiteElo "2308"]
[BlackElo "2406"]
[TimeControl "180+2"]
[EndTime "15:03:39 PST"]
[Termination "DiogenesSinopeus won by resignation"]

1. d4 {[%clk 0:03:01.9]} 1... Nf6 {[%clk 0:03:00.5]} 2. c4 {[%clk 0:03:03.3]}
2... e6 {[%clk 0:03:01.8]} 3. Nc3 {[%clk 0:03:03.2]} 3... Bb4 {[%clk 0:03:03.2]}
4. Qc2 {[%clk 0:03:04.5]} 4... c5 {[%clk 0:03:04.1]} 5. dxc5 {[%clk 0:03:04.5]}
5... Bxc3+ {[%clk 0:03:05.6]} 6. Qxc3 {[%clk 0:02:50.3]} 6... Ne4 {[%clk
0:03:06.8]} 7. Qd4 {[%clk 0:02:50.9]} 7... Qa5+ {[%clk 0:03:07.5]} 8. Bd2 {[%clk
0:02:49.7]} 8... Qxd2+ {[%clk 0:03:08.2]} 9. Qxd2 {[%clk 0:02:51.6]} 9... Nxd2
{[%clk 0:03:09.9]} 10. Kxd2 {[%clk 0:02:52.5]} 10... Na6 {[%clk 0:03:11.8]} 11.
e3 {[%clk 0:02:46.5]} 11... Nxc5 {[%clk 0:03:12.1]} 12. Bd3 {[%clk 0:02:48.1]}
12... Nxd3 {[%clk 0:03:09.5]} 13. Kxd3 {[%clk 0:02:49.2]} 13... b6 {[%clk
0:03:04.3]} 14. Nf3 {[%clk 0:02:49.9]} 14... Ba6 {[%clk 0:02:47.2]} 15. b3
{[%clk 0:02:30.5]} 15... d5 {[%clk 0:02:46.9]} 16. Nd2 {[%clk 0:02:23.1]} 16...
Rc8 {[%clk 0:02:37.1]} 17. Rac1 {[%clk 0:02:21]} 17... Ke7 {[%clk 0:02:36.5]}
18. Kc3 {[%clk 0:02:12.2]} 18... Rhd8 {[%clk 0:02:27.5]} 19. Rhd1 {[%clk
0:02:07.2]} 19... Rc7 {[%clk 0:02:28.7]} 20. Kb4 {[%clk 0:02:01.3]} 20... Rdc8
{[%clk 0:02:26.1]} 21. Rc3 {[%clk 0:01:58.4]} 21... Bb7 {[%clk 0:02:20.6]} 22.
g3 {[%clk 0:01:46.1]} 22... Rc5 {[%clk 0:02:21]} 23. Rdc1 {[%clk 0:01:45.8]}
23... a5+ {[%clk 0:02:21.8]} 24. Ka3 {[%clk 0:01:47.2]} 24... b5 {[%clk
0:02:10.7]} 25. Kb2 {[%clk 0:01:47.8]} 25... dxc4 {[%clk 0:02:08]} 26. bxc4
{[%clk 0:01:48.1]} 26... b4 {[%clk 0:02:02.4]} 27. Rd3 {[%clk 0:01:48.8]} 27...
a4 {[%clk 0:01:56.9]} 28. a3 {[%clk 0:01:42.7]} 28... b3 {[%clk 0:01:51.1]} 29.
Kc3 {[%clk 0:01:39.2]} 29... R5c7 {[%clk 0:01:42.6]} 30. Kb4 {[%clk 0:01:23.8]}
30... Bc6 {[%clk 0:01:43.1]} 31. Nb1 {[%clk 0:01:19.4]} 31... Rb8+ {[%clk
0:01:39.2]} 32. Kc3 {[%clk 0:01:20.4]} 32... Rbc8 {[%clk 0:01:30.7]} 33. Kd2
{[%clk 0:01:17.7]} 33... Be4 {[%clk 0:01:27.6]} 34. Rd4 {[%clk 0:01:15.5]} 34...
Bxb1 {[%clk 0:01:26.9]} 35. Rxb1 {[%clk 0:01:11.2]} 35... Rxc4 {[%clk 0:01:28]}
36. Rxc4 {[%clk 0:01:07.9]} 36... Rxc4 {[%clk 0:01:29.9]} 37. Kd3 {[%clk
0:01:09.6]} 37... Rc2 {[%clk 0:01:29.6]} 38. Rd1 {[%clk 0:01:09.9]} 0-1

[Event "*** Titled Tuesday Blitz"]
[Site "Chess.com"]
[Date "2018.11.06"]
[Round "9"]
[White "Boorchess"]
[Black "SaraciNderim"]
[Result "0-1"]
[WhiteElo "2445"]
[BlackElo "2649"]
[TimeControl "180+2"]
[EndTime "15:03:46 PST"]
[Termination "SaraciNderim won by resignation"]

1. e4 {[%clk 0:03:01.9]} 1... c5 {[%clk 0:02:59.3]} 2. c3 {[%clk 0:03:03.5]}
2... e6 {[%clk 0:02:58.5]} 3. d4 {[%clk 0:03:04.7]} 3... cxd4 {[%clk 0:02:56.7]}
4. cxd4 {[%clk 0:03:06]} 4... d5 {[%clk 0:02:58.2]} 5. exd5 {[%clk 0:03:07.9]}
5... exd5 {[%clk 0:02:59]} 6. Nf3 {[%clk 0:03:09.8]} 6... Bb4+ {[%clk
0:02:59.8]} 7. Nc3 {[%clk 0:03:10.9]} 7... Nf6 {[%clk 0:02:59.8]} 8. Bb5+ {[%clk
0:03:09.9]} 8... Bd7 {[%clk 0:03:00.6]} 9. Bxd7+ {[%clk 0:03:10.6]} 9... Nbxd7
{[%clk 0:03:01.2]} 10. O-O {[%clk 0:03:12.5]} 10... O-O {[%clk 0:03:01.8]} 11.
Ne2 {[%clk 0:03:14]} 11... Re8 {[%clk 0:03:01.7]} 12. Ng3 {[%clk 0:03:14.4]}
12... Ne4 {[%clk 0:03:02.2]} 13. a3 {[%clk 0:03:15.7]} 13... Nxg3 {[%clk
0:03:01.3]} 14. fxg3 {[%clk 0:03:16.4]} 14... Be7 {[%clk 0:03:01]} 15. Bf4
{[%clk 0:03:16.8]} 15... Nf6 {[%clk 0:02:53.3]} 16. Qb3 {[%clk 0:03:17.9]} 16...
Qb6 {[%clk 0:02:50.3]} 17. Qxb6 {[%clk 0:03:18.9]} 17... axb6 {[%clk 0:02:52.2]}
18. Rac1 {[%clk 0:03:14.9]} 18... Rac8 {[%clk 0:02:52.7]} 19. Bc7 {[%clk
0:03:15.9]} 19... b5 {[%clk 0:02:50.8]} 20. Ne5 {[%clk 0:03:17.5]} 20... Ne4
{[%clk 0:02:20.3]} 21. Bb6 {[%clk 0:03:10.9]} 21... f6 {[%clk 0:02:14.4]} 22.
Nd3 {[%clk 0:03:12.3]} 22... Bd6 {[%clk 0:02:11.5]} 23. Rxc8 {[%clk 0:02:54.8]}
23... Rxc8 {[%clk 0:02:13.4]} 24. Rc1 {[%clk 0:02:56.4]} 24... Rc4 {[%clk
0:02:11.4]} 25. Kf1 {[%clk 0:02:45.5]} 25... Rxc1+ {[%clk 0:01:47.8]} 26. Nxc1
{[%clk 0:02:46.5]} 26... Nd2+ {[%clk 0:01:49.7]} 27. Ke2 {[%clk 0:02:28.4]}
27... Nc4 {[%clk 0:01:51.6]} 28. Bc5 {[%clk 0:02:06]} 28... Bxc5 {[%clk
0:01:50.9]} 29. dxc5 {[%clk 0:02:07.9]} 29... Nxb2 {[%clk 0:01:52.8]} 30. Ke3
{[%clk 0:02:09.8]} 30... Kf7 {[%clk 0:01:51.4]} 31. Kd4 {[%clk 0:02:08.8]} 31...
Ke6 {[%clk 0:01:52.6]} 32. Na2 {[%clk 0:02:09.5]} 32... Nc4 {[%clk 0:01:51.3]}
33. Nc3 {[%clk 0:02:05.2]} 33... Nxa3 {[%clk 0:01:51.1]} 34. Ne2 {[%clk
0:01:52]} 34... g5 {[%clk 0:01:49.3]} 35. Kc3 {[%clk 0:01:53.3]} 35... Ke5
{[%clk 0:01:43.4]} 36. Kb4 {[%clk 0:01:54.7]} 36... Nc2+ {[%clk 0:01:22.6]} 37.
Ka5 {[%clk 0:01:52.4]} 37... d4 {[%clk 0:01:14]} 38. Kb6 {[%clk 0:01:50.3]}
38... d3 {[%clk 0:01:14.1]} 39. Nc3 {[%clk 0:01:49.8]} 39... b4 {[%clk
0:01:14.5]} 40. Kxb7 {[%clk 0:01:29]} 40... bxc3 {[%clk 0:01:13.3]} 41. c6
{[%clk 0:01:30.6]} 41... Nd4 {[%clk 0:01:10.2]} 42. c7 {[%clk 0:01:32.5]} 42...
Nb5 {[%clk 0:01:10.7]} 43. c8=Q {[%clk 0:01:30.1]} 43... Nd6+ {[%clk 0:01:11.6]}
0-1

[Event "*** Titled Tuesday Blitz"]
[Site "Chess.com"]
[Date "2018.11.06"]
[Round "9"]
[White "ruvat"]
[Black "SimonKnightRivendell"]
[Result "1-0"]
[WhiteElo "2299"]
[BlackElo "1952"]
[TimeControl "180+2"]
[EndTime "15:03:48 PST"]
[Termination "ruvat won by resignation"]

1. d4 {[%clk 0:02:56.1]} 1... d5 {[%clk 0:03:00.1]} 2. c4 {[%clk 0:02:56.7]}
2... e5 {[%clk 0:03:01.1]} 3. dxe5 {[%clk 0:02:56.9]} 3... d4 {[%clk 0:03:01.9]}
4. Nf3 {[%clk 0:02:57.9]} 4... Nc6 {[%clk 0:03:03.3]} 5. a3 {[%clk 0:02:57.2]}
5... Bg4 {[%clk 0:03:03.9]} 6. Nbd2 {[%clk 0:02:57.1]} 6... Nge7 {[%clk
0:03:04.6]} 7. b4 {[%clk 0:02:56.9]} 7... Ng6 {[%clk 0:03:05.3]} 8. Bb2 {[%clk
0:02:56.9]} 8... Ngxe5 {[%clk 0:02:58.6]} 9. Nxe5 {[%clk 0:02:54.5]} 9... Nxe5
{[%clk 0:02:59.3]} 10. Qb3 {[%clk 0:02:35.2]} 10... Qd7 {[%clk 0:02:41.3]} 11.
h3 {[%clk 0:02:26]} 11... Bh5 {[%clk 0:02:40.8]} 12. g4 {[%clk 0:02:25]} 12...
Bg6 {[%clk 0:02:41.4]} 13. Bg2 {[%clk 0:02:25.7]} 13... O-O-O {[%clk 0:02:38.5]}
14. f4 {[%clk 0:02:22.2]} 14... Nxg4 {[%clk 0:02:30.6]} 15. Qf3 {[%clk
0:02:13.3]} 15... c5 {[%clk 0:02:19]} 16. hxg4 {[%clk 0:02:08.5]} 16... f6
{[%clk 0:02:16.7]} 17. f5 {[%clk 0:01:38.3]} 17... Bf7 {[%clk 0:02:16.8]} 18. b5
{[%clk 0:01:38.6]} 18... Bd6 {[%clk 0:02:11.5]} 19. O-O-O {[%clk 0:01:36.4]}
19... Rde8 {[%clk 0:01:55.6]} 20. Kb1 {[%clk 0:01:35]} 20... Re3 {[%clk
0:01:55.5]} 21. Qf2 {[%clk 0:01:24.2]} 21... Rhe8 {[%clk 0:01:54.5]} 22. Bf3
{[%clk 0:01:23.6]} 22... h5 {[%clk 0:01:50.7]} 23. Rc1 {[%clk 0:01:19.6]} 23...
hxg4 {[%clk 0:01:46.6]} 24. Bxg4 {[%clk 0:01:17.8]} 24... Bg3 {[%clk 0:01:28.9]}
25. Qg2 {[%clk 0:01:16.9]} 25... Qc7 {[%clk 0:01:20.9]} 26. Rh3 {[%clk
0:01:11.9]} 26... Qf4 {[%clk 0:01:07.7]} 27. Bf3 {[%clk 0:01:08.6]} 27... Qxf5+
{[%clk 0:00:53.9]} 28. Ka1 {[%clk 0:01:01.5]} 28... Bf4 {[%clk 0:00:35.8]} 29.
Bg4 {[%clk 0:00:59.6]} 1-0

[Event "*** Titled Tuesday Blitz"]
[Site "Chess.com"]
[Date "2018.11.06"]
[Round "9"]
[White "Makalexa"]
[Black "ShadyH9"]
[Result "1-0"]
[WhiteElo "2136"]
[BlackElo "2261"]
[TimeControl "180+2"]
[EndTime "15:03:50 PST"]
[Termination "Makalexa won by resignation"]

1. e4 {[%clk 0:03:01.9]} 1... c5 {[%clk 0:03:00.8]} 2. Nf3 {[%clk 0:03:02.5]}
2... Nc6 {[%clk 0:03:01.8]} 3. d4 {[%clk 0:03:02.9]} 3... cxd4 {[%clk
0:03:03.7]} 4. Nxd4 {[%clk 0:03:04]} 4... g6 {[%clk 0:03:05]} 5. c4 {[%clk
0:03:03.1]} 5... Nf6 {[%clk 0:03:05.6]} 6. Nc3 {[%clk 0:03:02.9]} 6... d6 {[%clk
0:03:06.7]} 7. Nc2 {[%clk 0:03:01.5]} 7... Bg7 {[%clk 0:03:04.3]} 8. Be2 {[%clk
0:03:02.1]} 8... O-O {[%clk 0:03:03.4]} 9. O-O {[%clk 0:03:03.5]} 9... Be6
{[%clk 0:02:52.9]} 10. Bg5 {[%clk 0:03:02.9]} 10... Rc8 {[%clk 0:02:46]} 11. Rc1
{[%clk 0:03:01.6]} 11... Qa5 {[%clk 0:02:44.6]} 12. Qd2 {[%clk 0:02:58.2]} 12...
Rfe8 {[%clk 0:02:30.3]} 13. Rfd1 {[%clk 0:02:56.3]} 13... a6 {[%clk 0:02:28]}
14. b3 {[%clk 0:02:53.8]} 14... Ne5 {[%clk 0:02:21.2]} 15. Bxf6 {[%clk
0:02:45.8]} 15... Bxf6 {[%clk 0:02:19.7]} 16. Nd5 {[%clk 0:02:46.8]} 16... Qxd2
{[%clk 0:01:49.1]} 17. Nxf6+ {[%clk 0:02:48]} 17... exf6 {[%clk 0:01:50.5]} 18.
Rxd2 {[%clk 0:02:49.2]} 18... Red8 {[%clk 0:01:21.3]} 19. Rcd1 {[%clk
0:02:47.6]} 19... Kf8 {[%clk 0:01:08.5]} 20. f4 {[%clk 0:02:39.8]} 20... Nd7
{[%clk 0:00:34.4]} 21. Rxd6 {[%clk 0:02:33.2]} 21... Ke7 {[%clk 0:00:34.3]} 22.
Bf3 {[%clk 0:02:06.9]} 22... b5 {[%clk 0:00:34.2]} 23. Ne3 {[%clk 0:01:54.2]}
23... bxc4 {[%clk 0:00:34.5]} 24. f5 {[%clk 0:01:55]} 24... c3 {[%clk
0:00:10.5]} 25. fxe6 {[%clk 0:01:55.5]} 25... fxe6 {[%clk 0:00:09.9]} 26. R6d3
{[%clk 0:01:42]} 26... c2 {[%clk 0:00:11]} 27. Rc1 {[%clk 0:01:41.5]} 27... Ne5
{[%clk 0:00:10.6]} 28. Rxd8 {[%clk 0:01:41.3]} 28... Kxd8 {[%clk 0:00:11.5]} 29.
Rxc2 {[%clk 0:01:41.8]} 29... Rb8 {[%clk 0:00:10.7]} 30. Nc4 {[%clk 0:01:39.4]}
1-0

[Event "*** Titled Tuesday Blitz"]
[Site "Chess.com"]
[Date "2018.11.06"]
[Round "9"]
[White "ddtru"]
[Black "lucasmito"]
[Result "0-1"]
[WhiteElo "2318"]
[BlackElo "2502"]
[TimeControl "180+2"]
[EndTime "15:04:06 PST"]
[Termination "lucasmito won on time"]

1. d4 {[%clk 0:03:01.9]} 1... Nf6 {[%clk 0:03:00.8]} 2. Nf3 {[%clk 0:03:02.5]}
2... g6 {[%clk 0:03:02]} 3. c4 {[%clk 0:03:03.4]} 3... Bg7 {[%clk 0:03:03.2]} 4.
Nc3 {[%clk 0:03:03.5]} 4... O-O {[%clk 0:03:04.1]} 5. e4 {[%clk 0:03:03.6]} 5...
d6 {[%clk 0:03:05.7]} 6. Be2 {[%clk 0:03:04.4]} 6... Na6 {[%clk 0:03:07.2]} 7.
O-O {[%clk 0:03:04.5]} 7... e5 {[%clk 0:03:08.4]} 8. Be3 {[%clk 0:03:00.3]} 8...
c6 {[%clk 0:03:09]} 9. Re1 {[%clk 0:02:53.1]} 9... Ng4 {[%clk 0:02:49.3]} 10.
Bg5 {[%clk 0:02:26.8]} 10... f6 {[%clk 0:02:49.1]} 11. Bc1 {[%clk 0:02:26.1]}
11... exd4 {[%clk 0:02:34.7]} 12. Nxd4 {[%clk 0:02:22.8]} 12... f5 {[%clk
0:02:35.1]} 13. Bxg4 {[%clk 0:02:16.5]} 13... fxg4 {[%clk 0:02:34.2]} 14. Be3
{[%clk 0:02:16]} 14... Nc5 {[%clk 0:02:32.3]} 15. Qc2 {[%clk 0:02:10.7]} 15...
Be5 {[%clk 0:02:31.1]} 16. Nce2 {[%clk 0:01:43.7]} 16... Qh4 {[%clk 0:02:28.9]}
17. Ng3 {[%clk 0:01:39.8]} 17... Qf6 {[%clk 0:02:26]} 18. Rad1 {[%clk
0:01:33.2]} 18... a5 {[%clk 0:02:23.3]} 19. Rf1 {[%clk 0:01:29.5]} 19... a4
{[%clk 0:02:21.4]} 20. f4 {[%clk 0:01:24.5]} 20... gxf3 {[%clk 0:02:20.2]} 21.
Nxf3 {[%clk 0:01:13.4]} 21... Bf4 {[%clk 0:02:16.6]} 22. Bd4 {[%clk 0:01:00.4]}
22... Qe7 {[%clk 0:02:14]} 23. Rde1 {[%clk 0:00:44.1]} 23... Bg4 {[%clk
0:02:11.7]} 24. Bc3 {[%clk 0:00:35.9]} 24... Ne6 {[%clk 0:02:06.5]} 25. Ne2
{[%clk 0:00:19.4]} 25... Be5 {[%clk 0:02:03.2]} 26. Nxe5 {[%clk 0:00:19.1]}
26... dxe5 {[%clk 0:02:00.6]} 27. h3 {[%clk 0:00:17.9]} 27... Bxe2 {[%clk
0:01:55.2]} 28. Qxe2 {[%clk 0:00:18.8]} 28... Nf4 {[%clk 0:01:54]} 29. Qe3
{[%clk 0:00:14.3]} 29... Rad8 {[%clk 0:01:51.7]} 30. Kh2 {[%clk 0:00:12.4]}
30... Rd3 {[%clk 0:01:50.6]} 31. Qf2 {[%clk 0:00:10.9]} 31... a3 {[%clk
0:01:48.8]} 32. g3 {[%clk 0:00:10.3]} 32... axb2 {[%clk 0:01:42]} 33. Bxb2
{[%clk 0:00:08]} 33... Qe6 {[%clk 0:01:38.6]} 0-1

[Event "*** Titled Tuesday Blitz"]
[Site "Chess.com"]
[Date "2018.11.06"]
[Round "9"]
[White "albi1999"]
[Black "GCamachoMartinez"]
[Result "0-1"]
[WhiteElo "2445"]
[BlackElo "2334"]
[TimeControl "180+2"]
[EndTime "15:04:08 PST"]
[Termination "GCamachoMartinez won by resignation"]

1. d4 {[%clk 0:03:01.9]} 1... d5 {[%clk 0:03:00]} 2. c4 {[%clk 0:03:01.8]} 2...
dxc4 {[%clk 0:03:00.4]} 3. Nf3 {[%clk 0:02:57.9]} 3... Nf6 {[%clk 0:03:01.2]} 4.
e3 {[%clk 0:02:59.2]} 4... e6 {[%clk 0:03:02.2]} 5. Bxc4 {[%clk 0:03:00.7]} 5...
c5 {[%clk 0:03:02.1]} 6. O-O {[%clk 0:03:02.2]} 6... a6 {[%clk 0:03:02.8]} 7.
Nc3 {[%clk 0:03:03.5]} 7... Nc6 {[%clk 0:03:00.5]} 8. Qe2 {[%clk 0:02:54.4]}
8... Be7 {[%clk 0:02:57.9]} 9. Rd1 {[%clk 0:02:55]} 9... cxd4 {[%clk 0:02:57.9]}
10. exd4 {[%clk 0:02:56.4]} 10... Na5 {[%clk 0:02:54.1]} 11. Bd3 {[%clk
0:02:56.8]} 11... O-O {[%clk 0:02:54.2]} 12. Bg5 {[%clk 0:02:45.6]} 12... g6
{[%clk 0:02:22.9]} 13. Ne5 {[%clk 0:02:31.3]} 13... Nc6 {[%clk 0:02:11]} 14.
Nxc6 {[%clk 0:02:20.6]} 14... bxc6 {[%clk 0:02:11.4]} 15. Rac1 {[%clk
0:02:19.4]} 15... Nd5 {[%clk 0:01:53.7]} 16. Bxe7 {[%clk 0:02:17.9]} 16... Qxe7
{[%clk 0:01:53.4]} 17. Ne4 {[%clk 0:02:17]} 17... Nf4 {[%clk 0:01:43.8]} 18. Qe3
{[%clk 0:02:16.1]} 18... Nxd3 {[%clk 0:01:44.4]} 19. Rxd3 {[%clk 0:02:16.4]}
19... Bb7 {[%clk 0:01:43.7]} 20. Nc5 {[%clk 0:02:10.5]} 20... Rfd8 {[%clk
0:01:43.8]} 21. Qh6 {[%clk 0:02:03.4]} 21... Rd6 {[%clk 0:01:24.2]} 22. Re1
{[%clk 0:01:54.2]} 22... Rad8 {[%clk 0:01:13.8]} 23. Rh3 {[%clk 0:01:53.1]}
23... f5 {[%clk 0:01:14.5]} 24. Nb3 {[%clk 0:01:38.9]} 24... e5 {[%clk
0:01:11.1]} 25. dxe5 {[%clk 0:01:35.2]} 25... Rd1 {[%clk 0:01:09.8]} 26. Re3
{[%clk 0:01:35.8]} 26... Qb4 {[%clk 0:01:03.5]} 27. Kf1 {[%clk 0:01:18.2]} 27...
a5 {[%clk 0:01:04]} 28. f3 {[%clk 0:01:07.1]} 28... a4 {[%clk 0:00:59.8]} 29.
Nc1 {[%clk 0:00:54.8]} 29... Ba6+ {[%clk 0:01:00.6]} 30. Kf2 {[%clk 0:00:55.7]}
30... Qd2+ {[%clk 0:00:55.2]} 0-1

[Event "*** Titled Tuesday Blitz"]
[Site "Chess.com"]
[Date "2018.11.06"]
[Round "9"]
[White "mitrabhaa"]
[Black "Jbd735"]
[Result "0-1"]
[WhiteElo "2588"]
[BlackElo "2502"]
[TimeControl "180+2"]
[EndTime "15:04:23 PST"]
[Termination "Jbd735 won by resignation"]

1. d4 {[%clk 0:03:01.9]} 1... d5 {[%clk 0:03:00.3]} 2. Nf3 {[%clk 0:03:02.6]}
2... Nf6 {[%clk 0:03:00.9]} 3. c4 {[%clk 0:03:03.1]} 3... c6 {[%clk 0:03:02]} 4.
Nc3 {[%clk 0:03:03.9]} 4... e6 {[%clk 0:03:02.9]} 5. Bg5 {[%clk 0:03:04.1]} 5...
dxc4 {[%clk 0:02:53.5]} 6. a4 {[%clk 0:03:01]} 6... Bb4 {[%clk 0:02:52.9]} 7. e3
{[%clk 0:03:01.7]} 7... Qa5 {[%clk 0:02:40.6]} 8. Bxf6 {[%clk 0:02:51.4]} 8...
Bxc3+ {[%clk 0:02:36.5]} 9. bxc3 {[%clk 0:02:51.8]} 9... Qxc3+ {[%clk
0:02:37.9]} 10. Nd2 {[%clk 0:02:53.1]} 10... gxf6 {[%clk 0:02:37.2]} 11. Bxc4
{[%clk 0:02:54.7]} 11... O-O {[%clk 0:02:27.7]} 12. O-O {[%clk 0:02:54.9]} 12...
Nd7 {[%clk 0:02:23.7]} 13. Rb1 {[%clk 0:02:55.4]} 13... Qa5 {[%clk 0:02:16.3]}
14. e4 {[%clk 0:02:55.5]} 14... Nb6 {[%clk 0:02:02.9]} 15. Rb3 {[%clk 0:02:55]}
15... Kh8 {[%clk 0:01:28]} 16. Rh3 {[%clk 0:02:29.4]} 16... Rg8 {[%clk
0:01:14.1]} 17. f4 {[%clk 0:02:22.4]} 17... Nxc4 {[%clk 0:01:02.6]} 18. Nxc4
{[%clk 0:02:22.3]} 18... Qb4 {[%clk 0:01:02.8]} 19. Qc2 {[%clk 0:02:17.2]} 19...
Rg7 {[%clk 0:00:58.3]} 20. e5 {[%clk 0:02:18.1]} 20... f5 {[%clk 0:00:52.8]} 21.
Rb1 {[%clk 0:02:19.5]} 21... Qe7 {[%clk 0:00:47.7]} 22. Nd6 {[%clk 0:02:19.6]}
22... Rb8 {[%clk 0:00:41.5]} 23. a5 {[%clk 0:02:13.9]} 23... Qd7 {[%clk
0:00:38.2]} 24. Qf2 {[%clk 0:02:04.9]} 24... b6 {[%clk 0:00:29.3]} 25. Qh4
{[%clk 0:02:05.9]} 25... c5 {[%clk 0:00:22]} 26. Qf6 {[%clk 0:02:06.3]} 26...
Kg8 {[%clk 0:00:19.6]} 27. Rbb3 {[%clk 0:02:02.8]} 27... Bb7 {[%clk 0:00:17.2]}
28. Rhg3 {[%clk 0:02:01.6]} 28... Rg6 {[%clk 0:00:17]} 29. Rxg6+ {[%clk
0:02:02.3]} 29... fxg6 {[%clk 0:00:16]} 30. axb6 {[%clk 0:02:03.5]} 30... Bd5
{[%clk 0:00:06.6]} 31. bxa7 {[%clk 0:01:59]} 31... Rxb3 {[%clk 0:00:06.6]} 32.
h4 {[%clk 0:01:59]} 32... Rb2 {[%clk 0:00:06.6]} 33. h5 {[%clk 0:01:58.2]} 33...
Rxg2+ {[%clk 0:00:06.8]} 34. Kf1 {[%clk 0:01:59.3]} 34... Qxa7 {[%clk
0:00:06.8]} 35. Qd8+ {[%clk 0:01:57.3]} 35... Kg7 {[%clk 0:00:07.9]} 36. Qf6+
{[%clk 0:01:52]} 36... Kh6 {[%clk 0:00:08]} 37. Nf7+ {[%clk 0:01:53.3]} 37...
Kxh5 {[%clk 0:00:07.8]} 0-1